[Event "Azerbaijan Championship 2021"]
[Site "Nakhchivan"]
[Date "2021.05.10"]
[Round "7.6"]
[White "Abbasov, Farid"]
[Black "Sevdimaliyev, Urfan"]
[Result "1-0"]
[ECO "E04"]
[WhiteElo "2528"]
[BlackElo "2369"]
[Annotator "ChessBase"]
[PlyCount "55"]
[EventDate "2021.05.04"]
[EventType "tourn"]
[EventCountry "AZE"]
[SourceTitle "playchess.com"]
[Source "ChessBase"]
[SourceQuality "1"]
[TimeControl "40/5400+30:1800+30"]

1. c4 {[%emt 0:01:03]} e6 {[%emt 0:00:00]} 2. d4 {[%emt 0:00:08]} Nf6 {[%emt 0:00:23]} 3. g3 {[%emt 0:00:10]} d5 {[%emt 0:00:16]} 4. Bg2 {[%emt 0:00:05]} dxc4 {[%emt 0:01:00]} 5. Nf3 {[%emt 0:03:12]} a6 {[%emt 0:00:55]} 6. O-O {[%emt 0:00:20]} Nc6 {[%emt 0:00:28]} 7. e3 {[%emt 0:00:07]} Rb8 {[%emt 0:00:45]} 8. Qe2 {[%emt 0:00:46]} b5 {[%emt 0:02:03]} 9. b3 {[%emt 0:00:02]} cxb3 {[%emt 0:01:52]} 10. axb3 {[%emt 0:00:02]} Be7 {[%emt 0:05:04]} 11. Bb2 {[%emt 0:00:40]} Bb7 {[%emt 0:03:56]} 12. Rd1 {[%emt 0:23:35]} Nb4 {[%emt 0:03:40]} 13. Bc3 {[%emt 0:09:48]} O-O {[%emt 0:07:09]} 14. Ne5 {[%emt 0:04:02]} Bxg2 {[%emt 0:14:47]} 15. Kxg2 {[%emt 0:00:17]} Qd5+ {[%emt 0:02:52]} 16. f3 {[%emt 0:01:46]} Qb7 {[%emt 0:14:05]} 17. Bxb4 {[%emt 0:04:48]} Bxb4 {[%emt 0:00:02]} 18. Rc1 {[%emt 0:00:01]} c5 {[%emt 0:05:26]} 19. Nd3 {[%emt 0:11:11]} a5 {[%emt 0:06:50]} 20. dxc5 {[%emt 0:12:01]} Rfc8 {[%emt 0:07:35]} 21. Ra2 {[%emt 0:01:37]} Qd5 {[%emt 0:06:47]} 22. e4 {[%emt 0:03:59]} Qd4 {[%emt 0:01:39]} 23. Rac2 {[%emt 0:00:56]} Rc6 {[%emt 0:00:57]} 24. Rd1 {[%emt 0:00:49]} g5 {[%emt 0:04:59]} 25. Nxb4 {[%emt 0:01:37]} Qxb4 {[%emt 0:00:09]} 26. Qe3 {[%emt 0:00:02]} h6 {[%emt 0:00:25]} 27. Rd4 {[%emt 0:00:18]} Rxc5 {[%emt 0:01:09]} 28. Rxc5 {[%emt 0:00:07]} 1-0

[Event "Azerbaijan Championship 2021"]
[Site "Nakhchivan"]
[Date "2021.05.11"]
[Round "8.3"]
[White "Suleymanli, Aydin"]
[Black "Safarli, Eltaj"]
[Result "1/2-1/2"]
[ECO "A46"]
[WhiteElo "2520"]
[BlackElo "2598"]
[Annotator "ChessBase"]
[PlyCount "81"]
[EventDate "2021.05.04"]
[EventType "tourn"]
[EventCountry "AZE"]
[SourceTitle "playchess.com"]
[Source "ChessBase"]
[SourceQuality "1"]
[TimeControl "40/5400+30:1800+30"]

1. d4 {[%emt 0:00:52]} Nf6 {[%emt 0:00:00]} 2. Nf3 {[%emt 0:00:35]} e6 {[%emt 0:00:08]} 3. Bf4 {[%emt 0:02:41]} d5 {[%emt 0:01:31]} 4. e3 {[%emt 0:00:21]} Bd6 {[%emt 0:00:03]} 5. Bg3 {[%emt 0:00:12]} O-O {[%emt 0:01:20]} 6. Nbd2 {[%emt 0:00:16]} b6 {[%emt 0:03:07]} 7. Bd3 {[%emt 0:01:00]} c5 {[%emt 0:02:02]} 8. c3 {[%emt 0:00:19]} Ba6 {[%emt 0:00:18]} 9. Bxa6 {[%emt 0:06:03]} Nxa6 {[%emt 0:00:49]} 10. Ne5 {[%emt 0:01:31]} Bxe5 {[%emt 0:02:02]} 11. dxe5 {[%emt 0:00:51]} Nd7 {[%emt 0:01:50]} 12. e4 {[%emt 0:09:10]} c4 {[%emt 0:02:43]} 13. b4 {[%emt 0:17:25]} cxb3 {[%emt 0:00:48]} 14. axb3 {[%emt 0:00:13]} Nac5 {[%emt 0:01:09]} 15. exd5 {[%emt 0:05:47]} Nxe5 {[%emt 0:05:34]} 16. dxe6 {[%emt 0:03:13]} Ncd3+ {[%emt 0:10:29]} 17. Kf1 {[%emt 0:01:07]} fxe6 {[%emt 0:00:09]} 18. Qe2 {[%emt 0:00:34]} Qd5 {[%emt 0:02:51]} 19. Kg1 {[%emt 0:09:28]} Nf4 {[%emt 0:03:28]} 20. Bxf4 {[%emt 0:00:32]} Rxf4 {[%emt 0:00:02]} 21. h3 {[%emt 0:17:58]} Raf8 {[%emt 0:09:19]} 22. f3 {[%emt 0:00:34]} Qc5+ {[%emt 0:02:33]} 23. Qf2 {[%emt 0:03:00]} Qc7 {[%emt 0:14:20]} 24. Qe3 {[%emt 0:00:05]} R4f6 {[%emt 0:13:22]} 25. Kf2 {[%emt 0:12:11]} Rg6 {[%emt 0:06:24]} 26. Ne4 {[%emt 0:00:17]} Nd7 {[%emt 0:00:48]} 27. Ra2 {[%emt 0:03:10]} Nc5 {[%emt 0:01:24]} 28. Nxc5 {[%emt 0:00:20]} Qg3+ {[%emt 0:02:32]} 29. Kf1 {[%emt 0:00:36]} bxc5 {[%emt 0:00:05]} 30. h4 {[%emt 0:01:28]} Rgf6 {[%emt 0:03:26]} 31. Rf2 {[%emt 0:00:12]} Qg6 {[%emt 0:01:27]} 32. Rb2 {[%emt 0:00:33]} Rf4 {[%emt 0:02:57]} 33. Re2 {[%emt 0:01:35]} Kh8 {[%emt 0:01:32]} 34. Kf2 {[%emt 0:00:12]} Qf6 {[%emt 0:03:22]} 35. Qe5 {[%emt 0:00:32]} Rxf3+ {[%emt 0:01:51]} 36. gxf3 {[%emt 0:00:04]} Qxf3+ {[%emt 0:00:01]} 37. Kg1 {[%emt 0:00:09]} Qf1+ {[%emt 0:00:01]} 38. Kh2 {[%emt 0:00:06]} Rf2+ {[%emt 0:00:06]} 39. Rxf2 {[%emt 0:00:04]} Qxf2+ {[%emt 0:00:05]} 40. Kh3 {[%emt 0:00:00]} Qf3+ {[%emt 0:00:00]} 41. Kh2 {[%emt 0:00:10]} 1/2-1/2

[Event "Azerbaijan Championship 2021"]
[Site "Nakhchivan"]
[Date "2021.05.11"]
[Round "8.5"]
[White "Sevdimaliyev, Urfan"]
[Black "Iskandarov, Misratdin"]
[Result "0-1"]
[ECO "A48"]
[WhiteElo "2369"]
[BlackElo "2535"]
[Annotator "ChessBase"]
[PlyCount "128"]
[EventDate "2021.05.04"]
[EventType "tourn"]
[EventCountry "AZE"]
[SourceTitle "playchess.com"]
[Source "ChessBase"]
[SourceQuality "1"]
[TimeControl "40/5400+30:1800+30"]

1. d4 {[%emt 0:00:00]} Nf6 {[%emt 0:00:00]} 2. Nf3 {[%emt 0:00:00]} g6 {[%emt 0:00:03]} 3. Bg5 {[%emt 0:00:00]} Bg7 {[%emt 0:00:16]} 4. Nbd2 {[%emt 0:00:00]} O-O {[%emt 0:00:30]} 5. c3 {[%emt 0:00:07]} d5 {[%emt 0:02:01]} 6. e3 {[%emt 0:00:14]} c5 {[%emt 0:00:43]} 7. Bd3 {[%emt 0:00:16]} b6 {[%emt 0:03:33]} 8. O-O {[%emt 0:00:26]} Nc6 {[%emt 0:00:13]} 9. Qe2 {[%emt 0:09:43]} Bb7 {[%emt 0:03:04]} 10. Rad1 {[%emt 0:04:34]} Qc7 {[%emt 0:03:31]} 11. Bf4 {[%emt 0:03:24]} Qc8 {[%emt 0:00:15]} 12. h3 {[%emt 0:03:36]} Nd7 {[%emt 0:03:58]} 13. Bb5 {[%emt 0:17:16]} a6 {[%emt 0:04:17]} 14. Ba4 {[%emt 0:03:27]} b5 {[%emt 0:06:21]} 15. Bb3 {[%emt 0:05:42]} c4 {[%emt 0:03:25]} 16. Bc2 {[%emt 0:00:03]} f5 {[%emt 0:00:07]} 17. Nh2 {[%emt 0:05:29]} Re8 {[%emt 0:03:54]} 18. Ndf3 {[%emt 0:02:02]} e5 {[%emt 0:08:29]} 19. dxe5 {[%emt 0:01:42]} Ncxe5 {[%emt 0:00:07]} 20. Nxe5 {[%emt 0:02:27]} Nxe5 {[%emt 0:00:08]} 21. Bxe5 {[%emt 0:06:34]} Rxe5 {[%emt 0:00:53]} 22. Nf3 {[%emt 0:01:05]} Re7 {[%emt 0:00:08]} 23. Qd2 {[%emt 0:01:55]} Qc5 {[%emt 0:01:50]} 24. h4 {[%emt 0:04:20]} Rae8 {[%emt 0:04:01]} 25. Nd4 {[%emt 0:03:01]} a5 {[%emt 0:06:50]} 26. a3 {[%emt 0:00:22]} Bc8 {[%emt 0:02:38]} 27. h5 {[%emt 0:03:52]} Qb6 {[%emt 0:10:23]} 28. hxg6 {[%emt 0:01:11]} hxg6 {[%emt 0:00:14]} 29. Nf3 {[%emt 0:06:11]} Rd8 {[%emt 0:01:20]} 30. Rfe1 {[%emt 0:01:04]} Bf6 {[%emt 0:00:56]} 31. Nd4 {[%emt 0:02:25]} Bd7 {[%emt 0:03:10]} 32. Qe2 {[%emt 0:02:59]} Be8 {[%emt 0:06:03]} 33. Qf3 {[%emt 0:00:39]} b4 {[%emt 0:01:46]} 34. axb4 {[%emt 0:00:08]} axb4 {[%emt 0:00:06]} 35. Ne2 {[%emt 0:02:11]} Bf7 {[%emt 0:01:02]} 36. Qg3 {[%emt 0:03:28]} Be5 {[%emt 0:01:41]} 37. Qg5 {[%emt 0:01:01]} Kf8 {[%emt 0:03:51]} 38. Bb1 {[%emt 0:04:00]} bxc3 {[%emt 0:01:06]} 39. bxc3 {[%emt 0:00:04]} Qf6 {[%emt 0:01:17]} 40. Qh6+ {[%emt 0:00:00]} Kg8 {[%emt 0:00:00]} 41. Nd4 {[%emt 0:06:07]} Be8 {[%emt 0:08:53]} 42. f4 {[%emt 0:05:55]} Bxd4 {[%emt 0:04:46]} 43. exd4 {[%emt 0:03:47]} Rh7 {[%emt 0:00:09]} 44. Qg5 {[%emt 0:00:03]} Qxg5 {[%emt 0:00:07]} 45. fxg5 {[%emt 0:00:01]} Rh5 {[%emt 0:00:44]} 46. Re7 {[%emt 0:03:59]} Rxg5 {[%emt 0:00:16]} 47. Rde1 {[%emt 0:01:15]} Bf7 {[%emt 0:00:44]} 48. Kf2 {[%emt 0:02:38]} Rb8 {[%emt 0:01:43]} 49. g3 {[%emt 0:02:39]} Rh5 {[%emt 0:01:12]} 50. Kg2 {[%emt 0:01:07]} Kg7 {[%emt 0:05:16]} 51. Bc2 {[%emt 0:01:16]} Rb2 {[%emt 0:00:09]} 52. R1e2 {[%emt 0:00:31]} Rh8 {[%emt 0:00:46]} 53. Ba4 {[%emt 0:01:11]} Rxe2+ {[%emt 0:00:11]} 54. Rxe2 {[%emt 0:00:03]} Rb8 {[%emt 0:00:47]} 55. Re5 {[%emt 0:01:37]} Rb6 {[%emt 0:00:41]} 56. Kf2 {[%emt 0:03:31]} Kf6 {[%emt 0:00:15]} 57. Ke3 {[%emt 0:00:56]} g5 {[%emt 0:03:07]} 58. Bc2 {[%emt 0:02:37]} Be6 {[%emt 0:00:19]} 59. Kd2 {[%emt 0:00:29]} Rb8 {[%emt 0:00:16]} 60. Ba4 {[%emt 0:01:26]} Rh8 {[%emt 0:04:11]} 61. Bc6 {[%emt 0:01:23]} Rh3 {[%emt 0:00:19]} 62. Re3 {[%emt 0:00:08]} Bf7 {[%emt 0:00:30]} 63. Bb7 {[%emt 0:00:39]} g4 {[%emt 0:00:29]} 64. Ke1 {[%emt 0:01:05]} f4 0-1

[Event "Azerbaijan Championship 2021"]
[Site "Nakhchivan"]
[Date "2021.05.12"]
[Round "9.1"]
[White "Safarli, Eltaj"]
[Black "Mamedov, Nidjat"]
[Result "1-0"]
[ECO "C26"]
[WhiteElo "2598"]
[BlackElo "2609"]
[Annotator "ChessBase"]
[PlyCount "59"]
[EventDate "2021.05.04"]
[EventType "tourn"]
[EventCountry "AZE"]
[SourceTitle "playchess.com"]
[Source "ChessBase"]
[SourceQuality "1"]
[TimeControl "40/5400+30:1800+30"]

1. e4 {[%emt 0:00:00]} e5 {[%emt 0:00:00]} 2. Nc3 {[%emt 0:00:00]} Nf6 {[%emt 0:00:00]} 3. d4 {[%emt 0:00:00]} exd4 {[%emt 0:00:21]} 4. Qxd4 {[%emt 0:00:00]} Nc6 {[%emt 0:00:26]} 5. Qd3 {[%emt 0:00:00]} Bc5 {[%emt 0:07:08]} 6. Bf4 {[%emt 0:00:31]} d6 {[%emt 0:01:36]} 7. Qd2 {[%emt 0:01:45]} O-O {[%emt 0:02:26]} 8. O-O-O {[%emt 0:01:17]} Re8 {[%emt 0:00:20]} 9. f3 {[%emt 0:00:51]} Be6 {[%emt 0:03:22]} 10. Nge2 {[%emt 0:02:23]} Qe7 {[%emt 0:09:39]} 11. Kb1 {[%emt 0:33:18]} a6 {[%emt 0:19:02]} 12. h4 {[%emt 0:12:09]} h6 {[%emt 0:27:15]} 13. Nd5 {[%emt 0:06:39]} Bxd5 {[%emt 0:00:08]} 14. exd5 {[%emt 0:00:04]} Ne5 {[%emt 0:00:06]} 15. Ng3 {[%emt 0:00:23]} Ng6 {[%emt 0:03:30]} 16. Nf5 {[%emt 0:01:40]} Qf8 {[%emt 0:03:20]} 17. Bg5 {[%emt 0:22:14]} Nh7 {[%emt 0:10:33]} 18. g4 {[%emt 0:01:03]} Ne5 {[%emt 0:00:08]} 19. Qg2 {[%emt 0:01:10]} b5 {[%emt 0:02:15]} 20. Bc1 {[%emt 0:01:15]} Nc4 {[%emt 0:00:24]} 21. Bd3 {[%emt 0:01:46]} Ne3 {[%emt 0:04:08]} 22. Bxe3 {[%emt 0:00:53]} Bxe3 {[%emt 0:00:05]} 23. g5 {[%emt 0:00:03]} Kh8 {[%emt 0:01:34]} 24. gxh6 {[%emt 0:05:14]} Bxh6 {[%emt 0:00:06]} 25. Nxh6 {[%emt 0:01:00]} gxh6 {[%emt 0:00:01]} 26. Rhg1 {[%emt 0:00:07]} Nf6 {[%emt 0:01:31]} 27. Qd2 {[%emt 0:01:36]} Re5 {[%emt 0:00:36]} 28. f4 {[%emt 0:00:20]} Rxd5 {[%emt 0:00:20]} 29. Qc3 {[%emt 0:00:36]} Qd8 {[%emt 0:00:10]} 30. Rde1 {[%emt 0:00:13]} 1-0

[Event "Azerbaijan Championship 2021"]
[Site "Nakhchivan"]
[Date "2021.05.12"]
[Round "9.2"]
[White "Durarbayli, Vasif"]
[Black "Abasov, Nijat"]
[Result "1/2-1/2"]
[ECO "A35"]
[WhiteElo "2606"]
[BlackElo "2665"]
[Annotator "ChessBase"]
[PlyCount "55"]
[EventDate "2021.05.04"]
[EventType "tourn"]
[EventCountry "AZE"]
[SourceTitle "playchess.com"]
[Source "ChessBase"]
[SourceQuality "1"]
[TimeControl "40/5400+30:1800+30"]

1. c4 {[%emt 0:00:00]} c5 {[%emt 0:00:00]} 2. Nc3 {[%emt 0:00:00]} Nc6 {[%emt 0:00:07]} 3. Nf3 {[%emt 0:00:00]} g6 {[%emt 0:00:21]} 4. e3 {[%emt 0:00:00]} Nf6 {[%emt 0:01:19]} 5. d4 cxd4 {[%emt 0:00:34]} 6. exd4 {[%emt 0:03:55]} d5 {[%emt 0:00:14]} 7. cxd5 {[%emt 0:00:04]} Nxd5 {[%emt 0:00:15]} 8. Qb3 {[%emt 0:00:06]} e6 {[%emt 0:02:13]} 9. Bb5 {[%emt 0:00:25]} Bg7 {[%emt 0:00:15]} 10. Bg5 {[%emt 0:01:45]} Qb6 {[%emt 0:02:56]} 11. Qa3 {[%emt 0:00:27]} f6 {[%emt 0:04:37]} 12. Nxd5 {[%emt 0:01:33]} exd5 {[%emt 0:00:55]} 13. Bxc6+ {[%emt 0:00:05]} bxc6 {[%emt 0:01:54]} 14. O-O {[%emt 0:00:19]} Kf7 {[%emt 0:06:45]} 15. Rfe1 {[%emt 0:00:47]} Bf8 {[%emt 0:03:15]} 16. Qe3 {[%emt 0:00:31]} fxg5 {[%emt 0:03:37]} 17. Qe8+ {[%emt 0:00:12]} Kg7 {[%emt 0:00:16]} 18. Re7+ {[%emt 0:00:06]} Bxe7 {[%emt 0:00:07]} 19. Qxe7+ {[%emt 0:00:02]} Kg8 {[%emt 0:00:50]} 20. Re1 {[%emt 0:00:10]} Bf5 {[%emt 0:03:39]} 21. Nxg5 {[%emt 0:00:25]} Rf8 {[%emt 0:00:16]} 22. Ne6 {[%emt 0:00:03]} Bxe6 {[%emt 0:00:12]} 23. Qxe6+ {[%emt 0:00:03]} Rf7 {[%emt 0:00:25]} 24. Qe8+ {[%emt 0:00:05]} Kg7 {[%emt 0:00:10]} 25. Qe5+ {[%emt 0:00:05]} Kg8 {[%emt 0:00:17]} 26. Qe8+ {[%emt 0:00:05]} Kg7 {[%emt 0:00:08]} 27. Qe5+ {[%emt 0:00:04]} Kg8 {[%emt 0:00:06]} 28. Qe8+ 1/2-1/2

[Event "Azerbaijan Championship 2021"]
[Site "Nakhchivan"]
[Date "2021.05.12"]
[Round "9.3"]
[White "Muradli, Mahammad"]
[Black "Asadli, Vugar"]
[Result "1/2-1/2"]
[ECO "D81"]
[WhiteElo "2449"]
[BlackElo "2572"]
[Annotator "ChessBase"]
[PlyCount "120"]
[EventDate "2021.05.04"]
[EventType "tourn"]
[EventCountry "AZE"]
[SourceTitle "playchess.com"]
[Source "ChessBase"]
[SourceQuality "1"]
[TimeControl "40/5400+30:1800+30"]

1. d4 {[%emt 0:02:20]} Nf6 {[%emt 0:00:00]} 2. c4 {[%emt 0:00:07]} g6 {[%emt 0:00:06]} 3. Nc3 {[%emt 0:00:04]} d5 {[%emt 0:00:04]} 4. Qb3 {[%emt 0:00:06]} dxc4 {[%emt 0:03:13]} 5. Qxc4 {[%emt 0:00:03]} Bg7 {[%emt 0:00:06]} 6. e4 {[%emt 0:00:09]} O-O {[%emt 0:00:34]} 7. Be2 {[%emt 0:00:06]} Nfd7 {[%emt 0:05:40]} 8. Be3 {[%emt 0:00:08]} Nb6 {[%emt 0:00:45]} 9. Qc5 {[%emt 0:00:08]} f5 {[%emt 0:04:20]} 10. f3 {[%emt 0:00:37]} a5 {[%emt 0:06:07]} 11. O-O-O {[%emt 0:05:54]} a4 {[%emt 0:05:20]} 12. a3 {[%emt 0:05:17]} Nc6 {[%emt 0:08:04]} 13. d5 {[%emt 0:04:19]} Na5 {[%emt 0:07:20]} 14. Kb1 {[%emt 0:01:18]} Nd7 {[%emt 0:09:17]} 15. Qb4 {[%emt 0:03:34]} c5 {[%emt 0:03:23]} 16. dxc6 {[%emt 0:04:54]} Nxc6 {[%emt 0:01:32]} 17. Qc4+ {[%emt 0:00:20]} Kh8 {[%emt 0:00:10]} 18. Nh3 {[%emt 0:01:04]} Qa5 {[%emt 0:01:56]} 19. f4 {[%emt 0:15:40]} Bxc3 {[%emt 0:05:10]} 20. Rd5 {[%emt 0:01:29]} Bg7 {[%emt 0:05:08]} 21. Rxa5 {[%emt 0:00:26]} Nxa5 {[%emt 0:00:21]} 22. Qxa4 {[%emt 0:03:30]} fxe4 {[%emt 0:00:03]} 23. Rd1 {[%emt 0:05:01]} Nf6 {[%emt 0:02:52]} 24. Nf2 {[%emt 0:02:54]} Be6 {[%emt 0:03:15]} 25. Qb5 {[%emt 0:00:32]} Rfc8 {[%emt 0:02:22]} 26. Bd4 {[%emt 0:11:21]} Nb3 {[%emt 0:06:06]} 27. Bxf6 {[%emt 0:02:43]} Bxf6 {[%emt 0:00:04]} 28. Nxe4 {[%emt 0:00:32]} Bg7 {[%emt 0:02:57]} 29. Ng5 {[%emt 0:02:42]} Bg8 {[%emt 0:05:20]} 30. Bg4 {[%emt 0:00:49]} Rd8 {[%emt 0:00:48]} 31. Qb4 {[%emt 0:02:04]} Rac8 {[%emt 0:01:55]} 32. Qe1 {[%emt 0:09:19]} Rxd1+ {[%emt 0:00:26]} 33. Qxd1 {[%emt 0:00:01]} Rc1+ {[%emt 0:00:07]} 34. Qxc1 {[%emt 0:00:03]} Nxc1 {[%emt 0:00:02]} 35. Kxc1 {[%emt 0:00:05]} Bd4 {[%emt 0:00:02]} 36. Kc2 {[%emt 0:01:55]} Be3 {[%emt 0:00:39]} 37. g3 {[%emt 0:05:18]} e5 {[%emt 0:00:48]} 38. Nh3 {[%emt 0:00:14]} exf4 {[%emt 0:00:34]} 39. Nxf4 {[%emt 0:00:29]} Bg1 {[%emt 0:00:04]} 40. h3 {[%emt 0:00:00]} Bh2 {[%emt 0:00:00]} 41. Bf3 {[%emt 0:02:08]} b6 {[%emt 0:02:02]} 42. Ne2 {[%emt 0:00:58]} Bc4 {[%emt 0:00:10]} 43. g4 {[%emt 0:01:55]} Bxe2 {[%emt 0:00:08]} 44. Bxe2 {[%emt 0:00:01]} Kg7 {[%emt 0:00:05]} 45. Bc4 {[%emt 0:02:33]} Kf6 {[%emt 0:00:13]} 46. Bg8 {[%emt 0:00:19]} h6 {[%emt 0:00:09]} 47. b4 {[%emt 0:01:01]} Ke5 {[%emt 0:00:35]} 48. Bf7 {[%emt 0:00:13]} g5 {[%emt 0:00:08]} 49. Kc3 {[%emt 0:00:25]} Bg1 {[%emt 0:00:53]} 50. Kc4 {[%emt 0:00:02]} Kd6 {[%emt 0:00:06]} 51. Kb5 {[%emt 0:00:14]} Bf2 {[%emt 0:00:06]} 52. Bg6 {[%emt 0:00:15]} Bg1 {[%emt 0:00:05]} 53. Ka6 {[%emt 0:00:05]} Kc7 {[%emt 0:00:04]} 54. Be4 {[%emt 0:00:31]} Bf2 {[%emt 0:00:14]} 55. a4 {[%emt 0:00:06]} Bg1 {[%emt 0:00:04]} 56. Kb5 {[%emt 0:00:05]} Bf2 {[%emt 0:00:05]} 57. Kc4 {[%emt 0:00:07]} Kd6 {[%emt 0:00:04]} 58. Kb5 {[%emt 0:00:09]} Kc7 {[%emt 0:00:04]} 59. Kc4 {[%emt 0:00:02]} Kd6 {[%emt 0:00:03]} 60. Kb5 {[%emt 0:00:03]} Kc7 {[%emt 0:00:02]} 1/2-1/2

[Event "Azerbaijan Championship 2021"]
[Site "Nakhchivan"]
[Date "2021.05.12"]
[Round "9.4"]
[White "Abbasov, Farid"]
[Black "Suleymanli, Aydin"]
[Result "1/2-1/2"]
[ECO "A60"]
[WhiteElo "2528"]
[BlackElo "2535"]
[Annotator "ChessBase"]
[PlyCount "33"]
[EventDate "2021.05.04"]
[EventType "tourn"]
[EventCountry "AZE"]
[SourceTitle "playchess.com"]
[Source "ChessBase"]
[SourceQuality "1"]
[TimeControl "40/5400+30:1800+30"]

1. d4 {[%emt 0:02:32]} Nf6 {[%emt 0:00:00]} 2. c4 {[%emt 0:00:24]} c5 {[%emt 0:00:01]} 3. d5 {[%emt 0:01:25]} e6 {[%emt 0:00:15]} 4. Nc3 {[%emt 0:01:29]} exd5 {[%emt 0:00:16]} 5. cxd5 {[%emt 0:00:05]} g6 {[%emt 0:00:22]} 6. e4 {[%emt 0:00:13]} d6 {[%emt 0:00:12]} 7. h3 {[%emt 0:00:22]} Bg7 {[%emt 0:00:07]} 8. Nf3 {[%emt 0:00:05]} O-O {[%emt 0:00:20]} 9. Bd3 {[%emt 0:00:17]} Re8 {[%emt 0:00:17]} 10. O-O {[%emt 0:00:27]} a6 {[%emt 0:00:09]} 11. a4 {[%emt 0:00:18]} Nbd7 {[%emt 0:00:30]} 12. Re1 {[%emt 0:00:13]} Nh5 {[%emt 0:01:11]} 13. Bg5 {[%emt 0:00:59]} Bf6 {[%emt 0:00:23]} 14. Bh6 {[%emt 0:00:16]} Bg7 {[%emt 0:00:07]} 15. Bg5 {[%emt 0:00:40]} Bf6 {[%emt 0:00:10]} 16. Bh6 {[%emt 0:00:11]} Bg7 {[%emt 0:00:09]} 17. Bg5 1/2-1/2

[Event "Azerbaijan Championship 2021"]
[Site "Nakhchivan"]
[Date "2021.05.12"]
[Round "9.5"]
[White "Iskandarov, Misratdin"]
[Black "Garayev, Kanan"]
[Result "0-1"]
[ECO "C55"]
[WhiteElo "2535"]
[BlackElo "2331"]
[Annotator "ChessBase"]
[PlyCount "84"]
[EventDate "2021.05.04"]
[EventType "tourn"]
[EventCountry "AZE"]
[SourceTitle "playchess.com"]
[Source "ChessBase"]
[SourceQuality "1"]
[TimeControl "40/5400+30:1800+30"]

1. e4 {[%emt 0:00:00]} e5 {[%emt 0:00:00]} 2. Bc4 {[%emt 0:00:00]} Nf6 {[%emt 0:00:00]} 3. d3 {[%emt 0:00:00]} Nc6 {[%emt 0:00:00]} 4. Nf3 {[%emt 0:00:00]} h6 {[%emt 0:04:10]} 5. c3 {[%emt 0:00:16]} d6 {[%emt 0:00:11]} 6. O-O {[%emt 0:00:56]} g5 {[%emt 0:02:37]} 7. Nbd2 {[%emt 0:05:35]} Bg7 {[%emt 0:01:47]} 8. Bb3 {[%emt 0:04:20]} O-O {[%emt 0:02:06]} 9. Nc4 {[%emt 0:00:11]} Be6 {[%emt 0:01:06]} 10. d4 {[%emt 0:09:32]} exd4 {[%emt 0:11:34]} 11. Nxd4 {[%emt 0:04:14]} Nxd4 {[%emt 0:02:46]} 12. Qxd4 {[%emt 0:10:30]} c5 {[%emt 0:05:32]} 13. Qe3 {[%emt 0:09:31]} Re8 {[%emt 0:11:23]} 14. Nd2 {[%emt 0:05:38]} Bxb3 {[%emt 0:13:48]} 15. axb3 {[%emt 0:00:27]} Qe7 {[%emt 0:03:59]} 16. Ra4 {[%emt 0:07:27]} b5 {[%emt 0:05:18]} 17. Ra6 {[%emt 0:05:41]} Nxe4 {[%emt 0:03:06]} 18. Nxe4 {[%emt 0:00:43]} Qxe4 {[%emt 0:00:08]} 19. Rxd6 {[%emt 0:04:06]} b4 {[%emt 0:03:26]} 20. c4 {[%emt 0:07:02]} a5 {[%emt 0:03:43]} 21. Rfd1 {[%emt 0:18:02]} a4 {[%emt 0:05:09]} 22. bxa4 {[%emt 0:01:46]} Qxc4 {[%emt 0:00:04]} 23. Qf3 {[%emt 0:00:05]} Qe2 {[%emt 0:01:54]} 24. Be3 {[%emt 0:01:32]} Qxb2 {[%emt 0:04:03]} 25. Bxc5 {[%emt 0:00:49]} Qc3 {[%emt 0:00:42]} 26. Qxc3 {[%emt 0:03:12]} bxc3 {[%emt 0:00:02]} 27. Be3 {[%emt 0:00:42]} Rxa4 {[%emt 0:01:50]} 28. Rc6 {[%emt 0:00:11]} f5 {[%emt 0:03:26]} 29. h3 {[%emt 0:00:43]} f4 {[%emt 0:00:24]} 30. Bb6 {[%emt 0:00:27]} Ra6 {[%emt 0:00:41]} 31. Rd7 {[%emt 0:00:54]} Rxb6 {[%emt 0:01:13]} 32. Rxb6 {[%emt 0:00:08]} c2 {[%emt 0:00:16]} 33. Rc6 {[%emt 0:00:47]} Re1+ {[%emt 0:00:05]} 34. Kh2 {[%emt 0:00:04]} c1=Q {[%emt 0:00:04]} 35. Rxc1 {[%emt 0:00:04]} Rxc1 {[%emt 0:00:04]} 36. h4 {[%emt 0:00:13]} g4 {[%emt 0:02:15]} 37. f3 {[%emt 0:00:05]} Rc2 {[%emt 0:02:11]} 38. Rd3 {[%emt 0:01:28]} Be5 {[%emt 0:01:09]} 39. fxg4 {[%emt 0:00:54]} f3+ {[%emt 0:00:32]} 40. Kg1 {[%emt 0:00:00]} fxg2 {[%emt 0:00:00]} 41. g5 {[%emt 0:00:32]} Bc7 {[%emt 0:00:56]} 42. Rb3 {[%emt 0:00:08]} Bd6 {[%emt 0:00:03]} 0-1

[Event "Azerbaijan Championship 2021"]
[Site "Nakhchivan"]
[Date "2021.05.12"]
[Round "9.6"]
[White "Gadimbayli, Abdulla"]
[Black "Sevdimaliyev, Urfan"]
[Result "1/2-1/2"]
[ECO "C07"]
[WhiteElo "2470"]
[BlackElo "2371"]
[Annotator "ChessBase"]
[PlyCount "88"]
[EventDate "2021.05.04"]
[EventType "tourn"]
[EventCountry "AZE"]
[SourceTitle "playchess.com"]
[Source "ChessBase"]
[SourceQuality "1"]
[TimeControl "40/5400+30:1800+30"]

1. e4 {[%emt 0:00:00]} e6 {[%emt 0:00:55]} 2. d4 {[%emt 0:00:00]} d5 {[%emt 0:00:04]} 3. Nd2 {[%emt 0:00:00]} c5 {[%emt 0:00:05]} 4. exd5 {[%emt 0:00:52]} Qxd5 {[%emt 0:00:06]} 5. Ngf3 {[%emt 0:00:05]} cxd4 {[%emt 0:00:07]} 6. Bc4 {[%emt 0:00:06]} Qd6 {[%emt 0:00:12]} 7. O-O {[%emt 0:00:33]} Nf6 {[%emt 0:00:15]} 8. Nb3 {[%emt 0:00:33]} Nc6 {[%emt 0:00:14]} 9. Nbxd4 {[%emt 0:00:19]} Nxd4 {[%emt 0:00:06]} 10. Nxd4 {[%emt 0:00:04]} a6 {[%emt 0:00:12]} 11. Re1 {[%emt 0:00:26]} Qc7 {[%emt 0:00:23]} 12. Bf1 {[%emt 0:00:27]} Be7 {[%emt 0:00:56]} 13. Qf3 {[%emt 0:01:41]} O-O {[%emt 0:00:30]} 14. Bf4 {[%emt 0:03:49]} Bd6 {[%emt 0:00:24]} 15. Bxd6 {[%emt 0:01:54]} Qxd6 {[%emt 0:00:05]} 16. Rad1 {[%emt 0:00:06]} Qb6 {[%emt 0:00:45]} 17. Qb3 {[%emt 0:02:53]} Qc7 {[%emt 0:00:24]} 18. Qc4 {[%emt 0:12:33]} Qxc4 {[%emt 0:11:44]} 19. Bxc4 {[%emt 0:00:04]} b5 {[%emt 0:01:00]} 20. Bf1 {[%emt 0:30:28]} Bb7 {[%emt 0:02:52]} 21. c3 {[%emt 0:02:36]} Nd5 {[%emt 0:11:19]} 22. c4 {[%emt 0:12:02]} bxc4 {[%emt 0:02:46]} 23. Bxc4 {[%emt 0:00:10]} Nb6 {[%emt 0:08:40]} 24. Bb3 {[%emt 0:14:21]} Rfd8 {[%emt 0:21:02]} 25. f3 {[%emt 0:04:32]} a5 {[%emt 0:04:34]} 26. Nb5 {[%emt 0:02:12]} a4 {[%emt 0:05:40]} 27. Bc2 {[%emt 0:00:46]} Bc6 {[%emt 0:01:44]} 28. Nc3 {[%emt 0:03:16]} Nd5 {[%emt 0:03:18]} 29. Nxd5 {[%emt 0:01:46]} Bxd5 {[%emt 0:00:19]} 30. Be4 {[%emt 0:01:11]} Bxe4 {[%emt 0:07:00]} 31. Rxd8+ {[%emt 0:00:06]} Rxd8 {[%emt 0:00:03]} 32. Rxe4 {[%emt 0:00:19]} g5 {[%emt 0:02:50]} 33. Kf2 {[%emt 0:01:06]} a3 {[%emt 0:07:29]} 34. bxa3 {[%emt 0:02:17]} Rd2+ {[%emt 0:00:12]} 35. Re2 {[%emt 0:00:26]} Rd3 {[%emt 0:00:06]} 36. Re3 {[%emt 0:00:06]} Rd2+ {[%emt 0:00:04]} 37. Re2 {[%emt 0:00:03]} Rd3 {[%emt 0:00:03]} 38. Ke1 {[%emt 0:01:55]} Rxa3 {[%emt 0:00:53]} 39. Kd1 {[%emt 0:00:27]} f5 {[%emt 0:01:52]} 40. Kc1 {[%emt 0:00:00]} Ra8 {[%emt 0:00:00]} 41. Kb2 {[%emt 0:02:10]} Kf7 {[%emt 0:07:22]} 42. Rc2 {[%emt 0:01:33]} Rb8+ {[%emt 0:02:43]} 43. Kc1 {[%emt 0:01:30]} Ra8 {[%emt 0:00:19]} 44. Kb2 {[%emt 0:08:01]} Rb8+ {[%emt 0:00:08]} 1/2-1/2